fUSD/lending_fUSD_20260606
["ID","MTS","AMOUNT","RATE_DAILY","PERIOD"]
[424257494,1780707061000,-200.0,0.00035216,2]
[424257496,1780707061000,-200.0,0.00035216,2]
[424257499,1780707061000,-200.0,0.00035216,2]
[424257500,1780707061000,-200.0,0.00035216,2]
[424257503,1780707061000,-200.0,0.00035216,2]
[424257520,1780707061000,-200.0,0.00035216,2]
[424257507,1780707061000,-200.0,0.00035216,2]
[424257508,1780707061000,-200.0,0.00035216,2]
[424257510,1780707061000,-200.0,0.00035216,2]
[424257504,1780707061000,-200.0,0.00035216,2]
[424257509,1780707061000,-200.0,0.00035216,2]
[424257511,1780707061000,-200.0,0.00035216,2]
[424257506,1780707061000,-200.0,0.00035216,2]
[424257512,1780707061000,-200.0,0.00035216,2]
[424257513,1780707061000,-200.0,0.00035216,2]
[424257514,1780707061000,-200.0,0.00035216,2]
[424257515,1780707061000,-200.0,0.00035216,2]
[424257516,1780707061000,-200.0,0.00035216,2]
[424257519,1780707061000,-200.0,0.00035216,2]
[424257485,1780707061000,-200.0,0.00035216,2]
[424257505,1780707061000,-200.0,0.00035216,2]
[424257484,1780707061000,-200.0,0.00035216,2]
[424257460,1780707061000,-500.0,0.00035106,2]
[424257486,1780707061000,-200.0,0.00035216,2]
[424257459,1780707061000,-529.52,0.00035106,2]
[424257458,1780707061000,-500.0,0.00035106,2]
[424257456,1780707061000,-500.0,0.00035106,2]
[424257457,1780707061000,-500.0,0.00035106,2]
[424257521,1780707061000,-200.0,0.00035216,2]
[424257461,1780707061000,-500.0,0.00035106,2]
[424257463,1780707061000,-500.0,0.00035106,2]
[424257462,1780707061000,-500.0,0.00035106,2]
[424257464,1780707061000,-500.0,0.00035106,2]
[424257467,1780707061000,-150.0,0.00035112,7]
[424257468,1780707061000,-1110.58,0.00035123,30]
[424257469,1780707061000,-1157.99,0.00035123,30]
[424257466,1780707061000,-480.14280083,0.0003511,7]
[424257465,1780707061000,-853.02,0.00035106,2]
[424257482,1780707061000,-150.0,0.00035213,7]
[424257475,1780707061000,-2291.6963,0.00035158,2]
[424257476,1780707061000,-4600.8994,0.00035158,2]
[424257470,1780707061000,-2339.0,0.00035144,11]
[424257472,1780707061000,-480.14280083,0.00035146,7]
[424257473,1780707061000,-641.0,0.00035147,10]
[424257474,1780707061000,-150.0,0.00035156,7]
[424257478,1780707061000,-150.0,0.00035175,7]
[424257477,1780707061000,-150.0,0.00035159,7]
[424257480,1780707061000,-150.0,0.000352,7]
[424257479,1780707061000,-480.14280083,0.00035183,7]
[424257488,1780707061000,-200.0,0.00035216,2]
[424257489,1780707061000,-200.0,0.00035216,2]
[424257481,1780707061000,-303.924,0.000352,13]
[424257483,1780707061000,-150.0,0.00035215,7]
[424257487,1780707061000,-200.0,0.00035216,2]
[424257471,1780707061000,-150.0,0.00035146,7]
[424257522,1780707061000,-200.0,0.00035216,2]
[424257518,1780707061000,-200.0,0.00035216,2]
[424257517,1780707061000,-200.0,0.00035216,2]
[424257558,1780707061000,-800.0,0.00035216,120]
[424257569,1780707061000,-800.0,0.00035216,120]
[424257557,1780707061000,-800.0,0.00035216,120]
[424257570,1780707061000,-800.0,0.00035216,120]
[424257559,1780707061000,-800.0,0.00035216,120]
[424257564,1780707061000,-800.0,0.00035216,120]
[424257563,1780707061000,-800.0,0.00035216,120]
[424257561,1780707061000,-800.0,0.00035216,120]
[424257562,1780707061000,-800.0,0.00035216,120]
[424257560,1780707061000,-800.0,0.00035216,120]
[424257565,1780707061000,-800.0,0.00035216,120]
[424257566,1780707061000,-800.0,0.00035216,120]
[424257567,1780707061000,-800.0,0.00035216,120]
[424257571,1780707061000,-800.0,0.00035216,120]
[424257568,1780707061000,-800.0,0.00035216,120]
[424257574,1780707061000,-800.0,0.00035216,120]
[424257573,1780707061000,-800.0,0.00035216,120]
[424257577,1780707061000,-800.0,0.00035216,120]
[424257575,1780707061000,-800.0,0.00035216,120]
[424257579,1780707061000,-800.0,0.00035216,120]
[424257581,1780707061000,-800.0,0.00035216,120]
[424257583,1780707061000,-800.0,0.00035216,120]
[424257578,1780707061000,-800.0,0.00035216,120]
[424257582,1780707061000,-800.0,0.00035216,120]
[424257584,1780707061000,-800.0,0.00035216,120]
[424257580,1780707061000,-800.0,0.00035216,120]
[424257572,1780707061000,-800.0,0.00035216,120]
[424257586,1780707061000,-800.0,0.00035216,120]
[424257585,1780707061000,-800.0,0.00035216,120]
[424257524,1780707061000,-200.0,0.00035216,2]
[424257576,1780707061000,-800.0,0.00035216,120]
[424257551,1780707061000,-800.0,0.00035216,120]
[424257587,1780707061000,-800.0,0.00035216,120]
[424257552,1780707061000,-800.0,0.00035216,120]
[424257523,1780707061000,-200.0,0.00035216,2]
[424257528,1780707061000,-200.0,0.00035216,2]
[424257527,1780707061000,-200.0,0.00035216,2]
[424257529,1780707061000,-200.0,0.00035216,2]
[424257526,1780707061000,-200.0,0.00035216,2]
[424257525,1780707061000,-200.0,0.00035216,2]
[424257531,1780707061000,-200.0,0.00035216,2]
[424257540,1780707061000,-800.0,0.00035216,120]
[424257555,1780707061000,-800.0,0.00035216,120]
[424257543,1780707061000,-800.0,0.00035216,120]
[424257542,1780707061000,-800.0,0.00035216,120]
[424257532,1780707061000,-200.0,0.00035216,2]
[424257536,1780707061000,-200.0,0.00035216,2]
[424257541,1780707061000,-800.0,0.00035216,120]
[424257537,1780707061000,-200.0,0.00035216,2]
[424257530,1780707061000,-200.0,0.00035216,2]
[424257538,1780707061000,-200.0,0.00035216,2]
[424257533,1780707061000,-200.0,0.00035216,2]
[424257556,1780707061000,-800.0,0.00035216,120]
[424257550,1780707061000,-800.0,0.00035216,120]
[424257554,1780707061000,-800.0,0.00035216,120]
[424257545,1780707061000,-800.0,0.00035216,120]
[424257549,1780707061000,-800.0,0.00035216,120]
[424257553,1780707061000,-800.0,0.00035216,120]
[424257547,1780707061000,-800.0,0.00035216,120]
[424257546,1780707061000,-800.0,0.00035216,120]
[424257544,1780707061000,-800.0,0.00035216,120]
[424257539,1780707061000,-160.0,0.00035216,2]
[424257535,1780707061000,-200.0,0.00035216,2]
[424257534,1780707061000,-200.0,0.00035216,2]
[424257548,1780707061000,-800.0,0.00035216,120]
[424257635,1780707062000,-3440.0,0.00035393,30]
[424257632,1780707062000,-862.0,0.00035393,30]
[424257646,1780707062000,-150.0,0.00035413,7]
[424257629,1780707062000,-1318.09459601,0.00035385,2]
[424257637,1780707062000,-318.07,0.000354,14]
[424257636,1780707062000,-227.942999,0.000354,14]
[424257615,1780707062000,-1379.93314537,0.00035295,2]
[424257628,1780707062000,-3347.45188258,0.00035385,2]
[424257627,1780707062000,-1320.3681102,0.00035385,2]
[424257626,1780707062000,-3066.10808513,0.00035385,2]
[424257624,1780707062000,-1493.37554268,0.00035385,2]
[424257619,1780707062000,-150.0,0.00035346,7]
[424257625,1780707062000,-1309.525171,0.00035385,2]
[424257631,1780707062000,-672.0,0.00035393,30]
[424257640,1780707062000,-587.0,0.00035404,30]
[424257633,1780707062000,-488.0,0.00035393,30]
[424257630,1780707062000,-2907.23324123,0.00035385,2]
[424257639,1780707062000,-1022.0,0.00035404,30]
[424257650,1780707062000,-1691.0,0.00035419,30]
[424257638,1780707062000,-480.14280083,0.00035401,7]
[424257642,1780707062000,-638.0,0.00035404,30]
[424257649,1780707062000,-800.0,0.00035419,30]
[424257641,1780707062000,-3806.0,0.00035404,30]
[424257648,1780707062000,-3833.0,0.00035419,30]
[424257644,1780707062000,-2291.6963,0.00035407,2]
[424257643,1780707062000,-704.0,0.00035404,30]
[424257647,1780707062000,-14165.05,0.00035413,30]
[424257645,1780707062000,-4600.8994,0.00035407,2]
[424257618,1780707062000,-150.0,0.00035332,7]
[424257634,1780707062000,-2590.0,0.00035393,30]
[424257616,1780707062000,-150.0,0.00035327,7]
[424257606,1780707062000,-4600.8994,0.00035282,2]
[424257620,1780707062000,-480.14280083,0.00035364,7]
[424257593,1780707062000,-500.0,0.00035216,2]
[424257594,1780707062000,-500.0,0.00035216,2]
[424257595,1780707062000,-541.0,0.00035216,2]
[424257596,1780707062000,-480.14280083,0.00035219,7]
[424257590,1780707062000,-500.0,0.00035216,2]
[424257589,1780707062000,-500.0,0.00035216,2]
[424257591,1780707062000,-500.0,0.00035216,2]
[424257588,1780707062000,-899.0,0.00035216,120]
[424257592,1780707062000,-500.0,0.00035216,2]
[424257597,1780707062000,-150.0,0.00035226,7]
[424257599,1780707062000,-1592.0,0.00035248,11]
[424257601,1780707062000,-480.14280083,0.00035255,7]
[424257598,1780707062000,-150.0,0.00035244,7]
[424257600,1780707062000,-10000.0,0.00035254,2]
[424257602,1780707062000,-2044.371,0.00035257,2]
[424257603,1780707062000,-150.0,0.00035271,7]
[424257604,1780707062000,-150.0,0.0003528,7]
[424257609,1780707062000,-1699.57264745,0.00035295,2]
[424257608,1780707062000,-480.14280083,0.00035292,7]
[424257605,1780707062000,-2291.6963,0.00035282,2]
[424257607,1780707062000,-150.0,0.00035288,7]
[424257611,1780707062000,-1230.70127132,0.00035295,2]
[424257610,1780707062000,-2618.92899593,0.00035295,2]
[424257612,1780707062000,-1259.37351809,0.00035295,2]
[424257613,1780707062000,-1310.75427284,0.00035295,2]
[424257623,1780707062000,-150.0,0.00035384,7]
[424257622,1780707062000,-150.0,0.00035375,7]
[424257614,1780707062000,-1465.21063939,0.00035295,2]
[424257621,1780707062000,-150.0,0.0003537,7]
[424257617,1780707062000,-480.14280083,0.00035328,7]
[424257651,1780707062000,-408.0,0.00035419,30]
[424257666,1780707062000,-480.14280083,0.0003551,7]
[424257653,1780707062000,-150.0,0.00035432,7]
[424257687,1780707062000,-800.0,0.0003561,13]
[424257690,1780707062000,-800.0,0.0003561,13]
[424257700,1780707062000,-800.0,0.0003561,13]
[424257693,1780707062000,-800.0,0.0003561,13]
[424257691,1780707062000,-800.0,0.0003561,13]
[424257702,1780707062000,-1194.26274316,0.00035616,30]
[424257701,1780707062000,-150.0,0.00035612,7]
[424257703,1780707062000,-150.0,0.00035616,120]
[424257694,1780707062000,-800.0,0.0003561,13]
[424257699,1780707062000,-800.0,0.0003561,13]
[424257695,1780707062000,-800.0,0.0003561,13]
[424257692,1780707062000,-800.0,0.0003561,13]
[424257698,1780707062000,-800.0,0.0003561,13]
[424257696,1780707062000,-800.0,0.0003561,13]
[424257697,1780707062000,-800.0,0.0003561,13]
[424257708,1780707062000,-500.0,0.00035616,7]
[424257704,1780707062000,-2000.0,0.00035616,30]
[424257707,1780707062000,-500.0,0.00035616,7]
[424257715,1780707062000,-500.0,0.00035616,7]
[424257705,1780707062000,-1000.0,0.00035616,120]
[424257711,1780707062000,-500.0,0.00035616,7]
[424257709,1780707062000,-500.0,0.00035616,7]
[424257706,1780707062000,-500.0,0.00035616,7]
[424257710,1780707062000,-500.0,0.00035616,7]
[424257713,1780707062000,-500.0,0.00035616,7]
[424257714,1780707062000,-500.0,0.00035616,7]
[424257717,1780707062000,-500.0,0.00035616,7]
[424257716,1780707062000,-500.0,0.00035616,7]
[424257655,1780707062000,-150.0,0.0003544,7]
[424257688,1780707062000,-800.0,0.0003561,13]
[424257689,1780707062000,-800.0,0.0003561,13]
[424257712,1780707062000,-500.0,0.00035616,7]
[424257682,1780707062000,-2000.0,0.000356,7]
[424257678,1780707062000,-1808.0,0.00035589,120]
[424257652,1780707062000,-150.0,0.00035419,7]
[424257658,1780707062000,-150.0,0.00035463,7]
[424257657,1780707062000,-208.84,0.0003546,69]
[424257656,1780707062000,-1048.77798409,0.00035452,7]
[424257659,1780707062000,-164.0,0.00035464,11]
[424257660,1780707062000,-480.14280083,0.00035473,7]
[424257661,1780707062000,-150.0,0.00035479,7]
[424257663,1780707062000,-150.0,0.00035496,7]
[424257662,1780707062000,-20848.35706845,0.00035493,2]
[424257665,1780707062000,-150.0,0.00035507,7]
[424257675,1780707062000,-480.14280083,0.00035582,7]
[424257674,1780707062000,-2321.0,0.0003558,11]
[424257676,1780707062000,-1343.0,0.00035586,2]
[424257673,1780707062000,-150.0,0.00035552,7]
[424257654,1780707062000,-480.14280083,0.00035437,7]
[424257669,1780707062000,-4600.8994,0.00035532,2]
[424257667,1780707062000,-150.0,0.00035514,7]
[424257686,1780707062000,-800.0,0.0003561,13]
[424257681,1780707062000,-150.0,0.00035595,7]
[424257683,1780707062000,-2044.371,0.00035606,2]
[424257679,1780707062000,-1808.0,0.00035589,120]
[424257680,1780707062000,-1342.51625837,0.00035589,120]
[424257685,1780707062000,-800.0,0.0003561,13]
[424257668,1780707062000,-2291.6963,0.00035532,2]
[424257664,1780707062000,-150.0,0.00035496,7]
[424257677,1780707062000,-1373.0,0.00035586,2]
[424257670,1780707062000,-150.0,0.00035546,7]
[424257684,1780707062000,-150.0,0.00035608,7]
[424257671,1780707062000,-480.14280083,0.00035546,7]
[424257672,1780707062000,-150.0,0.00035551,7]
[424257754,1780707063000,-772.66754858,0.00035616,7]
[424257752,1780707063000,-772.66754858,0.00035616,7]
[424257749,1780707063000,-772.66754858,0.00035616,7]
[424257750,1780707063000,-772.66754858,0.00035616,7]
[424257760,1780707063000,-772.66754858,0.00035616,7]
[424257759,1780707063000,-772.66754858,0.00035616,7]
[424257764,1780707063000,-772.66754858,0.00035616,7]
[424257763,1780707063000,-772.66754858,0.00035616,7]
[424257762,1780707063000,-772.66754858,0.00035616,7]
[424257765,1780707063000,-772.66754858,0.00035616,7]
[424257761,1780707063000,-772.66754858,0.00035616,7]
[424257753,1780707063000,-772.66754858,0.00035616,7]
[424257751,1780707063000,-772.66754858,0.00035616,7]
[424257770,1780707063000,-772.66754858,0.00035616,7]
[424257755,1780707063000,-772.66754858,0.00035616,7]
[424257757,1780707063000,-772.66754858,0.00035616,7]
[424257756,1780707063000,-772.66754858,0.00035616,7]
[424257766,1780707063000,-772.66754858,0.00035616,7]
[424257769,1780707063000,-772.66754858,0.00035616,7]
[424257771,1780707063000,-772.66754858,0.00035616,7]
[424257768,1780707063000,-772.66754858,0.00035616,7]
[424257775,1780707063000,-768.60087727,0.00035616,7]
[424257767,1780707063000,-772.66754858,0.00035616,7]
[424257776,1780707063000,-768.60087727,0.00035616,7]
[424257743,1780707063000,-772.66754858,0.00035616,7]
[424257773,1780707063000,-772.66754858,0.00035616,7]
[424257758,1780707063000,-772.66754858,0.00035616,7]
[424257748,1780707063000,-772.66754858,0.00035616,7]
[424257732,1780707063000,-500.0,0.00035616,7]
[424257745,1780707063000,-772.66754858,0.00035616,7]
[424257772,1780707063000,-772.66754858,0.00035616,7]
[424257727,1780707063000,-500.0,0.00035616,7]
[424257726,1780707063000,-500.0,0.00035616,7]
[424257725,1780707063000,-500.0,0.00035616,7]
[424257719,1780707063000,-500.0,0.00035616,7]
[424257720,1780707063000,-500.0,0.00035616,7]
[424257721,1780707063000,-500.0,0.00035616,7]
[424257723,1780707063000,-500.0,0.00035616,7]
[424257722,1780707063000,-500.0,0.00035616,7]
[424257718,1780707063000,-500.0,0.00035616,7]
[424257728,1780707063000,-500.0,0.00035616,7]
[424257729,1780707063000,-151.39537519,0.00035616,7]
[424257742,1780707063000,-772.66754858,0.00035616,7]
[424257730,1780707063000,-500.0,0.00035616,7]
[424257739,1780707063000,-500.0,0.00035616,7]
[424257734,1780707063000,-500.0,0.00035616,7]
[424257740,1780707063000,-500.0,0.00035616,7]
[424257735,1780707063000,-500.0,0.00035616,7]
[424257737,1780707063000,-500.0,0.00035616,7]
[424257733,1780707063000,-500.0,0.00035616,7]
[424257736,1780707063000,-500.0,0.00035616,7]
[424257738,1780707063000,-500.0,0.00035616,7]
[424257741,1780707063000,-772.66754858,0.00035616,7]
[424257747,1780707063000,-772.66754858,0.00035616,7]
[424257744,1780707063000,-772.66754858,0.00035616,7]
[424257746,1780707063000,-772.66754858,0.00035616,7]
[424257731,1780707063000,-500.0,0.00035616,7]
[424257774,1780707063000,-772.66754858,0.00035616,7]
[424257724,1780707063000,-500.0,0.00035616,7]
[424257777,1780707063000,-768.60087727,0.00035616,7]
[424257807,1780707063000,-150.0,0.00035688,7]
[424257811,1780707063000,-150.0,0.000357,120]
[424257810,1780707063000,-227.943,0.000357,15]
[424257813,1780707063000,-150.0,0.00035726,7]
[424257812,1780707063000,-150.0,0.00035721,7]
[424257821,1780707063000,-2291.6963,0.00035781,2]
[424257814,1780707063000,-480.14280083,0.00035727,7]
[424257815,1780707063000,-150.0,0.00035746,7]
[424257822,1780707063000,-4600.8994,0.00035781,2]
[424257816,1780707063000,-153.99245409,0.0003575,120]
[424257819,1780707063000,-150.0,0.0003577,7]
[424257820,1780707063000,-150.0,0.00035777,7]
[424257806,1780707063000,-150.0,0.00035682,7]
[424257818,1780707063000,-480.14280083,0.00035764,7]
[424257825,1780707063000,-323.208621,0.00035781,30]
[424257824,1780707063000,-323.208621,0.00035781,30]
[424257823,1780707063000,-323.208621,0.00035781,30]
[424257834,1780707063000,-159.20318347,0.00035808,30]
[424257835,1780707063000,-150.0,0.00035812,7]
[424257826,1780707063000,-924.780105,0.00035781,30]
[424257832,1780707063000,-480.14280083,0.000358,7]
[424257833,1780707063000,-150.0,0.00035801,7]
[424257830,1780707063000,-924.780105,0.00035781,30]
[424257827,1780707063000,-323.208621,0.00035781,30]
[424257828,1780707063000,-924.780105,0.00035781,30]
[424257829,1780707063000,-924.780105,0.00035781,30]
[424257817,1780707063000,-150.0,0.00035753,120]
[424257809,1780707063000,-2037.72,0.000357,120]
[424257831,1780707063000,-151.0,0.00035781,30]
[424257803,1780707063000,-150.0,0.00035664,7]
[424257808,1780707063000,-480.14280083,0.00035691,7]
[424257782,1780707063000,-768.60087727,0.00035616,7]
[424257787,1780707063000,-768.60087727,0.00035616,7]
[424257779,1780707063000,-768.60087727,0.00035616,7]
[424257783,1780707063000,-768.60087727,0.00035616,7]
[424257781,1780707063000,-768.60087727,0.00035616,7]
[424257786,1780707063000,-768.60087727,0.00035616,7]
[424257780,1780707063000,-768.60087727,0.00035616,7]
[424257785,1780707063000,-768.60087727,0.00035616,7]
[424257784,1780707063000,-768.60087727,0.00035616,7]
[424257789,1780707063000,-768.60087727,0.00035616,7]
[424257800,1780707063000,-2291.6963,0.00035656,2]
[424257799,1780707063000,-480.14280083,0.00035655,7]
[424257778,1780707063000,-768.60087727,0.00035616,7]
[424257793,1780707063000,-905.92,0.00035616,2]
[424257795,1780707063000,-480.14280083,0.00035618,7]
[424257804,1780707063000,-150.0,0.00035679,7]
[424257802,1780707063000,-150.0,0.00035658,7]
[424257797,1780707063000,-500.0,0.00035626,120]
[424257794,1780707063000,-181.79,0.00035616,30]
[424257801,1780707063000,-4600.8994,0.00035656,2]
[424257791,1780707063000,-768.60087727,0.00035616,7]
[424257792,1780707063000,-768.60087727,0.00035616,7]
[424257788,1780707063000,-768.60087727,0.00035616,7]
[424257798,1780707063000,-150.0,0.00035638,7]
[424257796,1780707063000,-765.0,0.00035625,3]
[424257790,1780707063000,-768.60087727,0.00035616,7]
[424257805,1780707063000,-641.0,0.00035681,11]
[424257873,1780707064000,-261.473768,0.00035947,2]
[424257867,1780707064000,-150.0,0.00035945,7]
[424257865,1780707064000,-150.0,0.00035945,7]
[424257864,1780707064000,-150.32951387,0.00035945,7]
[424257866,1780707064000,-480.14280083,0.00035945,7]
[424257871,1780707064000,-261.473768,0.00035947,2]
[424257874,1780707064000,-261.473768,0.00035947,2]
[424257870,1780707064000,-152.582099,0.00035947,30]
[424257872,1780707064000,-261.473768,0.00035947,2]
[424257868,1780707064000,-150.0,0.00035945,30]
[424257878,1780707064000,-1971.76659806,0.00035951,2]
[424257876,1780707064000,-400.0,0.00035951,2]
[424257875,1780707064000,-400.0,0.00035951,2]
[424257879,1780707064000,-2044.371,0.00035955,2]
[424257877,1780707064000,-1000.0,0.00035951,2]
[424257869,1780707064000,-151.0,0.00035947,30]
[424257881,1780707064000,-151.0,0.00035964,14]
[424257883,1780707064000,-151.0,0.00035967,30]
[424257884,1780707064000,-151.0,0.00035967,30]
[424257886,1780707064000,-151.0,0.00035967,30]
[424257882,1780707064000,-151.0,0.00035967,30]
[424257885,1780707064000,-151.0,0.00035967,30]
[424257887,1780707064000,-151.0,0.00035967,30]
[424257880,1780707064000,-151.0,0.00035964,14]
[424257863,1780707064000,-150.0,0.00035945,7]
[424257850,1780707064000,-700.0,0.000359,13]
[424257862,1780707064000,-150.0,0.00035945,7]
[424257888,1780707064000,-194.091505,0.00035967,30]
[424257846,1780707064000,-150.0,0.0003589,120]
[424257836,1780707064000,-150.0,0.00035814,7]
[424257840,1780707064000,-480.14280083,0.00035873,7]
[424257837,1780707064000,-150.0,0.00035833,7]
[424257839,1780707064000,-150.0,0.00035858,7]
[424257841,1780707064000,-1592.0,0.00035876,11]
[424257845,1780707064000,-150.0,0.00035889,7]
[424257843,1780707064000,-2321.0,0.00035888,11]
[424257842,1780707064000,-150.0,0.00035879,7]
[424257844,1780707064000,-1592.0,0.00035888,11]
[424257860,1780707064000,-150.0,0.00035945,7]
[424257838,1780707064000,-480.14280083,0.00035836,7]
[424257858,1780707064000,-150.0,0.00035945,7]
[424257847,1780707064000,-7378.77872167,0.00035898,2]
[424257854,1780707064000,-480.14280083,0.00035909,7]
[424257855,1780707064000,-620.0,0.00035918,30]
[424257853,1780707064000,-4600.8994,0.00035906,2]
[424257856,1780707064000,-151.0,0.00035944,14]
[424257851,1780707064000,-150.0,0.00035901,7]
[424257857,1780707064000,-154.53400448,0.00035945,7]
[424257852,1780707064000,-2291.6963,0.00035906,2]
[424257859,1780707064000,-224.17232919,0.00035945,7]
[424257861,1780707064000,-150.0,0.00035945,7]
[424257848,1780707064000,-150.0,0.00035899,2]
[424257849,1780707064000,-208.84,0.000359,98]
[424257889,1780707064000,-194.091505,0.00035967,30]
[424257890,1780707064000,-194.091505,0.00035967,30]
[424257921,1780707064000,-181.15738811,0.00035967,50]
[424257920,1780707064000,-436.03019892,0.00035967,30]
[424257923,1780707064000,-1000.44843572,0.00035967,30]
[424257925,1780707064000,-150.0,0.00035984,30]
[424257922,1780707064000,-14870.71970793,0.00035967,10]
[424257924,1780707064000,-1592.0,0.00035981,11]
[424257926,1780707064000,-3678.98656854,0.00035997,31]
[424257927,1780707064000,-3132018.3843,0.00035998,30]
[424257929,1780707064000,-323.208621,0.00035998,30]
[424257934,1780707064000,-924.780105,0.00035998,30]
[424257932,1780707064000,-323.208621,0.00035998,30]
[424257930,1780707064000,-323.208621,0.00035998,30]
[424257931,1780707064000,-924.780105,0.00035998,30]
[424257928,1780707064000,-323.208621,0.00035998,30]
[424257935,1780707064000,-924.780105,0.00035998,30]
[424257936,1780707064000,-151.0,0.00035998,30]
[424257937,1780707064000,-151.0,0.00035998,30]
[424257938,1780707064000,-1094.222631,0.00035998,30]
[424257942,1780707064000,-1094.222631,0.00035998,30]
[424257941,1780707064000,-616.852183,0.00035998,30]
[424257940,1780707064000,-1094.222631,0.00035998,30]
[424257939,1780707064000,-1094.222631,0.00035998,30]
[424257891,1780707064000,-194.091505,0.00035967,30]
[424257918,1780707064000,-342.280518,0.00035967,30]
[424257919,1780707064000,-933.0806155,0.00035967,10]
[424257933,1780707064000,-924.780105,0.00035998,30]
[424257917,1780707064000,-342.280518,0.00035967,30]
[424257903,1780707064000,-2126.765351,0.00035967,30]
[424257916,1780707064000,-151.0,0.00035967,30]
[424257893,1780707064000,-432.548374,0.00035967,30]
[424257892,1780707064000,-432.548374,0.00035967,30]
[424257896,1780707064000,-155.893806,0.00035967,30]
[424257895,1780707064000,-432.548374,0.00035967,30]
[424257894,1780707064000,-432.548374,0.00035967,30]
[424257899,1780707064000,-2126.765351,0.00035967,30]
[424257897,1780707064000,-2126.765351,0.00035967,30]
[424257902,1780707064000,-2126.765351,0.00035967,30]
[424257901,1780707064000,-2126.765351,0.00035967,30]
[424257900,1780707064000,-2126.765351,0.00035967,30]
[424257898,1780707064000,-2126.765351,0.00035967,30]
[424257905,1780707064000,-342.280518,0.00035967,30]
[424257910,1780707064000,-342.280518,0.00035967,30]
[424257911,1780707064000,-151.0,0.00035967,30]
[424257912,1780707064000,-151.0,0.00035967,30]
[424257908,1780707064000,-151.0,0.00035967,30]
[424257907,1780707064000,-151.0,0.00035967,30]
[424257906,1780707064000,-342.280518,0.00035967,30]
[424257915,1780707064000,-151.0,0.00035967,30]
[424257913,1780707064000,-342.280518,0.00035967,30]
[424257909,1780707064000,-342.280518,0.00035967,30]
[424257904,1780707064000,-2126.765351,0.00035967,30]
[424257914,1780707064000,-342.280518,0.00035967,30]
[424257982,1780707065000,-591.10394002,0.00036,120]
[424257980,1780707065000,-890.90734959,0.00036,120]
[424257990,1780707065000,-174.73297243,0.00036,30]
[424257974,1780707065000,-470.94923007,0.00036,2]
[424257973,1780707065000,-593.93823306,0.00036,120]
[424257970,1780707065000,-1036.86461903,0.00036,120]
[424257977,1780707065000,-227.942999,0.00036,15]
[424257972,1780707065000,-1050.91729606,0.00036,120]
[424257976,1780707065000,-227.942999,0.00036,15]
[424257991,1780707065000,-3000.0,0.00036,30]
[424257975,1780707065000,-227.943004,0.00036,15]
[424257983,1780707065000,-621.75348237,0.00036,120]
[424258001,1780707065000,-570.70280571,0.00036034,2]
[424257981,1780707065000,-383.07251658,0.00036,120]
[424257984,1780707065000,-1689.89123066,0.00036,120]
[424257985,1780707065000,-298.86994577,0.00036,120]
[424257986,1780707065000,-464.23258435,0.00036,120]
[424257988,1780707065000,-537.43448418,0.00036,120]
[424257987,1780707065000,-327.35912312,0.00036,120]
[424257993,1780707065000,-1982.27,0.00036006,30]
[424258000,1780707065000,-4600.8994,0.0003603,2]
[424257992,1780707065000,-1061.0,0.00036,7]